[Event "Titled Tuesday Blitz June 28 Early 2022"]
[White "Nunez V, Gustavo Eduardo"]
[Black "Pirvulescu, Ekaterina"]
[WhiteFideId "4403690"]
[BlackFideId "13506374"]
[WhiteElo "2228"]
[BlackElo "1740"]
[Result "1-0"]
[Round "08"]
[TimeControl "180+1"]
[Date "2022.06.28"]
[WhiteClock "0:00:20"]
[BlackClock "0:00:03"]

1. e4 {[%clk 0:03:00]}  c5 {[%clk 0:02:52]} 2. Nc3 {[%clk 0:03:00]}  Nc6 {[%clk 0:02:50]} 3. g3 {[%clk 0:03:01]}  e5 {[%clk 0:02:48]} 4. Bg2 {[%clk 0:03:01]}  Nd4 {[%clk 0:02:47]} 5. d3 {[%clk 0:03:01]}  d6 {[%clk 0:02:46]} 6. Be3 {[%clk 0:02:57]}  Nf6 {[%clk 0:02:39]} 7. h3 {[%clk 0:02:56]}  Be6 {[%clk 0:02:39]} 8. Nge2 {[%clk 0:02:53]}  Rb8 {[%clk 0:02:39]} 9. a4 {[%clk 0:02:52]}  Be7 {[%clk 0:02:39]} 10. O-O {[%clk 0:02:50]}  Nd7 {[%clk 0:02:39]} 11. f4 {[%clk 0:02:49]}  O-O {[%clk 0:02:36]} 12. f5 {[%clk 0:02:49]}  Qc7 {[%clk 0:01:54]} 13. fxe6 {[%clk 0:02:43]}  Nxe6 {[%clk 0:01:54]} 14. Nd5 {[%clk 0:02:43]}  Qd8 {[%clk 0:01:48]} 15. g4 {[%clk 0:02:43]}  a6 {[%clk 0:01:45]} 16. a5 {[%clk 0:02:40]}  f6 {[%clk 0:01:38]} 17. Ng3 {[%clk 0:02:38]}  g6 {[%clk 0:01:32]} 18. Bh6 {[%clk 0:02:37]}  Rf7 {[%clk 0:01:32]} 19. c3 {[%clk 0:02:34]}  Bf8 {[%clk 0:01:21]} 20. Qd2 {[%clk 0:02:34]}  Bxh6 {[%clk 0:01:21]} 21. Qxh6 {[%clk 0:02:35]}  Qf8 {[%clk 0:01:22]} 22. Qd2 {[%clk 0:02:25]}  Kg7 {[%clk 0:01:16]} 23. h4 {[%clk 0:02:21]}  b5 {[%clk 0:00:52]} 24. axb6 {[%clk 0:02:19]}  Nxb6 {[%clk 0:00:49]} 25. Rxa6 {[%clk 0:02:19]}  Nxd5 {[%clk 0:00:49]} 26. exd5 {[%clk 0:02:20]}  Nf4 {[%clk 0:00:49]} 27. Be4 {[%clk 0:02:05]}  Qc8 {[%clk 0:00:47]} 28. Rxd6 {[%clk 0:02:00]}  Qxg4 {[%clk 0:00:42]} 29. Qh2 {[%clk 0:01:44]}  Rfb7 {[%clk 0:00:15]} 30. Bf3 {[%clk 0:01:21]}  Nh3+ {[%clk 0:00:11]} 31. Kh1 {[%clk 0:01:21]}  Qxh4 {[%clk 0:00:09]} 32. Bg2 {[%clk 0:01:14]}  Rxb2 {[%clk 0:00:04]} 33. Qxh3 {[%clk 0:01:12]}  Qxh3+ {[%clk 0:00:03]} 34. Bxh3 {[%clk 0:01:13]}  Rd2 {[%clk 0:00:02]} 35. Rd7+ {[%clk 0:00:59]}  Kh6 {[%clk 0:00:02]} 36. Rf3 {[%clk 0:00:35]}  Rbb2 {[%clk 0:00:02]} 37. Bf1 {[%clk 0:00:34]}  Rh2+ {[%clk 0:00:02]} 38. Kg1 {[%clk 0:00:35]}  Rh3 {[%clk 0:00:02]} 39. Bxh3 {[%clk 0:00:34]}  Rb1+ {[%clk 0:00:02]} 40. Bf1 {[%clk 0:00:34]}  Rc1 {[%clk 0:00:01]} 41. c4 {[%clk 0:00:33]}  Kg5 {[%clk 0:00:01]} 42. Ne4+ {[%clk 0:00:33]}  Kg4 {[%clk 0:00:02]} 43. Rxf6 {[%clk 0:00:32]}  g5 {[%clk 0:00:01]} 44. Rg7 {[%clk 0:00:30]}  h5 {[%clk 0:00:02]} 45. Rxg5+ {[%clk 0:00:30]}  Kh4 {[%clk 0:00:02]} 46. Rg2 {[%clk 0:00:26]}  Rxf1+ {[%clk 0:00:02]} 47. Kxf1 {[%clk 0:00:26]}  Kh3 {[%clk 0:00:02]} 48. Rfg6 {[%clk 0:00:21]}  Kh4 {[%clk 0:00:03]} 49. R6g5 {[%clk 0:00:20]}  Kh3 {[%clk 0:00:03]} 50. Rxh5# {[%clk 0:00:20]} 1-0


[Site "https://www.chess.com"]

[Event "Titled Tuesday Blitz June 28 Early 2022"]
[White "Perez Gormaz, Matias"]
[Black "Preotu, Razvan"]
[WhiteFideId "3406342"]
[BlackFideId "2613280"]
[WhiteElo "2341"]
[BlackElo "2407"]
[Result "1-0"]
[Round "08"]
[TimeControl "180+1"]
[Date "2022.06.28"]
[WhiteClock "0:00:31"]
[BlackClock "0:00:17"]

1. e4 {[%clk 0:03:00]}  c5 {[%clk 0:03:00]} 2. Nf3 {[%clk 0:03:01]}  d6 {[%clk 0:03:00]} 3. Bc4 {[%clk 0:03:01]}  Nf6 {[%clk 0:03:00]} 4. e5 {[%clk 0:03:01]}  dxe5 {[%clk 0:02:59]} 5. Nxe5 {[%clk 0:03:02]}  e6 {[%clk 0:02:58]} 6. Qe2 {[%clk 0:03:03]}  Be7 {[%clk 0:02:55]} 7. O-O {[%clk 0:03:03]}  O-O {[%clk 0:02:55]} 8. Re1 {[%clk 0:03:04]}  Bd7 {[%clk 0:02:27]} 9. b3 {[%clk 0:02:58]}  Nc6 {[%clk 0:02:27]} 10. Nxd7 {[%clk 0:02:53]}  Qxd7 {[%clk 0:02:27]} 11. Bb2 {[%clk 0:02:54]}  Nd4 {[%clk 0:02:20]} 12. Qd1 {[%clk 0:02:52]}  Rfd8 {[%clk 0:02:08]} 13. a4 {[%clk 0:02:51]}  Ne8 {[%clk 0:02:02]} 14. Nc3 {[%clk 0:02:50]}  Nd6 {[%clk 0:02:02]} 15. Bd3 {[%clk 0:02:48]}  Rac8 {[%clk 0:01:49]} 16. Ne4 {[%clk 0:02:29]}  Nxe4 {[%clk 0:01:49]} 17. Bxe4 {[%clk 0:02:30]}  c4 {[%clk 0:01:48]} 18. bxc4 {[%clk 0:02:22]}  Rxc4 {[%clk 0:01:48]} 19. a5 {[%clk 0:02:14]}  Bf6 {[%clk 0:01:30]} 20. Rb1 {[%clk 0:02:11]}  g6 {[%clk 0:01:22]} 21. Bxd4 {[%clk 0:02:04]}  Qxd4 {[%clk 0:01:17]} 22. d3 {[%clk 0:01:58]}  Rc5 {[%clk 0:01:09]} 23. Qd2 {[%clk 0:01:46]}  Bg5 {[%clk 0:01:02]} 24. Qe2 {[%clk 0:01:18]}  Rxa5 {[%clk 0:01:02]} 25. Rxb7 {[%clk 0:01:17]}  Ra2 {[%clk 0:01:02]} 26. g3 {[%clk 0:01:16]}  a5 {[%clk 0:01:01]} 27. Reb1 {[%clk 0:01:11]}  a4 {[%clk 0:00:58]} 28. R1b4 {[%clk 0:01:02]}  Qc5 {[%clk 0:00:49]} 29. Rc4 {[%clk 0:01:00]}  Qd6 {[%clk 0:00:40]} 30. Rcc7 {[%clk 0:01:00]}  Rf8 {[%clk 0:00:37]} 31. Qf3 {[%clk 0:00:55]}  Rb2 {[%clk 0:00:29]} 32. Ra7 {[%clk 0:00:48]}  a3 {[%clk 0:00:19]} 33. Rxf7 {[%clk 0:00:43]}  Bh6 {[%clk 0:00:19]} 34. Qf6 {[%clk 0:00:34]}  a2 {[%clk 0:00:17]} 35. Rg7+ {[%clk 0:00:31]}  Kh8 {[%clk 0:00:16]} 36. Rxh7+ {[%clk 0:00:30]}  Kg8 {[%clk 0:00:17]} 37. Qh8# {[%clk 0:00:31]} 1-0


[Site "https://www.chess.com"]

[Event "Titled Tuesday Blitz June 28 Early 2022"]
[White "Reprintsev, Alexander"]
[Black "Barria Zuniga, Daniel"]
[WhiteFideId "14100541"]
[BlackFideId "3400816"]
[WhiteElo "2108"]
[BlackElo "2414"]
[Result "1-0"]
[Round "08"]
[TimeControl "180+1"]
[Date "2022.06.28"]
[WhiteClock "0:00:20"]
[BlackClock "0:00:01"]

1. e4 {[%clk 0:03:00]}  c5 {[%clk 0:02:55]} 2. b3 {[%clk 0:03:00]}  Nc6 {[%clk 0:02:27]} 3. Bb2 {[%clk 0:03:00]}  Nf6 {[%clk 0:02:24]} 4. e5 {[%clk 0:02:59]}  Nd5 {[%clk 0:02:24]} 5. Nf3 {[%clk 0:02:59]}  g6 {[%clk 0:02:19]} 6. Ng5 {[%clk 0:02:57]}  e6 {[%clk 0:02:03]} 7. Ne4 {[%clk 0:02:56]}  Be7 {[%clk 0:01:55]} 8. Nd6+ {[%clk 0:02:55]}  Bxd6 {[%clk 0:01:55]} 9. exd6 {[%clk 0:02:56]}  O-O {[%clk 0:01:54]} 10. h4 {[%clk 0:02:47]}  e5 {[%clk 0:01:42]} 11. Qf3 {[%clk 0:02:42]}  Ndb4 {[%clk 0:01:36]} 12. Na3 {[%clk 0:02:40]}  Nd4 {[%clk 0:01:34]} 13. Bxd4 {[%clk 0:02:34]}  cxd4 {[%clk 0:00:57]} 14. h5 {[%clk 0:02:32]}  Qg5 {[%clk 0:00:20]} 15. Bc4 {[%clk 0:02:25]}  Kg7 {[%clk 0:00:20]} 16. h6+ {[%clk 0:02:23]}  Kg8 {[%clk 0:00:16]} 17. O-O-O {[%clk 0:02:22]}  a6 {[%clk 0:00:14]} 18. Rde1 {[%clk 0:02:21]}  Rb8 {[%clk 0:00:13]} 19. Bd3 {[%clk 0:01:33]}  b5 {[%clk 0:00:11]} 20. Be4 {[%clk 0:01:32]}  Rb6 {[%clk 0:00:11]} 21. Qg3 {[%clk 0:01:21]}  Qxg3 {[%clk 0:00:11]} 22. fxg3 {[%clk 0:01:21]}  Rxd6 {[%clk 0:00:11]} 23. Kb2 {[%clk 0:01:20]}  f5 {[%clk 0:00:11]} 24. Bf3 {[%clk 0:01:18]}  e4 {[%clk 0:00:11]} 25. Be2 {[%clk 0:01:16]}  d3 {[%clk 0:00:10]} 26. cxd3 {[%clk 0:01:15]}  Nxd3+ {[%clk 0:00:11]} 27. Bxd3 {[%clk 0:01:15]}  Rxd3 {[%clk 0:00:12]} 28. Re2 {[%clk 0:01:06]}  Bb7 {[%clk 0:00:12]} 29. Rc1 {[%clk 0:01:05]}  Bc6 {[%clk 0:00:12]} 30. Nc2 {[%clk 0:01:05]}  a5 {[%clk 0:00:11]} 31. Ne3 {[%clk 0:01:04]}  Kf7 {[%clk 0:00:11]} 32. Rc3 {[%clk 0:01:03]}  Kf6 {[%clk 0:00:10]} 33. Rxd3 {[%clk 0:01:03]}  exd3 {[%clk 0:00:10]} 34. Rf2 {[%clk 0:01:03]}  Kg5 {[%clk 0:00:10]} 35. Kc3 {[%clk 0:01:02]}  Kxh6 {[%clk 0:00:08]} 36. Kxd3 {[%clk 0:01:01]}  Kg5 {[%clk 0:00:09]} 37. Kd4 {[%clk 0:00:57]}  h5 {[%clk 0:00:08]} 38. Kc5 {[%clk 0:00:56]}  h4 {[%clk 0:00:07]} 39. gxh4+ {[%clk 0:00:56]}  Kxh4 {[%clk 0:00:08]} 40. d4 {[%clk 0:00:55]}  Be4 {[%clk 0:00:06]} 41. Kxb5 {[%clk 0:00:53]}  Kg3 {[%clk 0:00:06]} 42. Rd2 {[%clk 0:00:52]}  f4 {[%clk 0:00:06]} 43. Nf1+ {[%clk 0:00:50]}  Kg4 {[%clk 0:00:05]} 44. Kxa5 {[%clk 0:00:48]}  Rc8 {[%clk 0:00:06]} 45. Rf2 {[%clk 0:00:41]}  Rc2 {[%clk 0:00:04]} 46. Rxc2 {[%clk 0:00:29]}  Bxc2 {[%clk 0:00:04]} 47. b4 {[%clk 0:00:29]}  Be4 {[%clk 0:00:04]} 48. Nd2 {[%clk 0:00:21]}  Bxg2 {[%clk 0:00:03]} 49. b5 {[%clk 0:00:21]}  f3 {[%clk 0:00:03]} 50. b6 {[%clk 0:00:21]}  f2 {[%clk 0:00:02]} 51. Kb4 {[%clk 0:00:20]}  Kf4 {[%clk 0:00:01]} 52. a4 {[%clk 0:00:20]}  Ke3 {[%clk 0:00:01]} 53. Kc3 {[%clk 0:00:20]} 1-0


[Site "https://www.chess.com"]

[Event "Titled Tuesday Blitz June 28 Early 2022"]
[White "Rosenberg, Evan S"]
[Black "Rios Escobar, Adan"]
[WhiteFideId "2019299"]
[BlackFideId "3403645"]
[WhiteElo "2179"]
[BlackElo "2467"]
[Result "1-0"]
[Round "08"]
[TimeControl "180+1"]
[Date "2022.06.28"]
[WhiteClock "0:00:08"]
[BlackClock "0:00:01"]

1. e4 {[%clk 0:03:00]}  c5 {[%clk 0:02:52]} 2. Nc3 {[%clk 0:03:01]}  d6 {[%clk 0:02:51]} 3. f4 {[%clk 0:03:00]}  g6 {[%clk 0:02:49]} 4. Nf3 {[%clk 0:02:59]}  Bg7 {[%clk 0:02:48]} 5. a4 {[%clk 0:03:00]}  Nc6 {[%clk 0:02:44]} 6. Bb5 {[%clk 0:03:00]}  Bd7 {[%clk 0:02:40]} 7. d3 {[%clk 0:03:00]}  e6 {[%clk 0:02:38]} 8. Bxc6 {[%clk 0:02:57]}  Bxc6 {[%clk 0:02:38]} 9. O-O {[%clk 0:02:57]}  Ne7 {[%clk 0:02:38]} 10. Qe1 {[%clk 0:02:53]}  O-O {[%clk 0:02:08]} 11. Qh4 {[%clk 0:02:41]}  f5 {[%clk 0:02:03]} 12. Ng5 {[%clk 0:02:35]}  h6 {[%clk 0:01:59]} 13. Nxe6 {[%clk 0:02:34]}  Qd7 {[%clk 0:01:58]} 14. Nxf8 {[%clk 0:02:22]}  Rxf8 {[%clk 0:01:59]} 15. e5 {[%clk 0:01:50]}  dxe5 {[%clk 0:01:54]} 16. fxe5 {[%clk 0:01:47]}  g5 {[%clk 0:01:49]} 17. Qf2 {[%clk 0:01:45]}  Bxe5 {[%clk 0:01:44]} 18. Be3 {[%clk 0:01:38]}  Bd4 {[%clk 0:01:42]} 19. Bxd4 {[%clk 0:01:39]}  cxd4 {[%clk 0:01:30]} 20. Nb5 {[%clk 0:01:32]}  Rd8 {[%clk 0:01:20]} 21. Nxa7 {[%clk 0:01:30]}  Bxa4 {[%clk 0:01:18]} 22. b3 {[%clk 0:01:29]}  Bc6 {[%clk 0:01:09]} 23. Nxc6 {[%clk 0:01:29]}  Qxc6 {[%clk 0:01:09]} 24. Rae1 {[%clk 0:01:21]}  f4 {[%clk 0:00:55]} 25. Rxe7 {[%clk 0:01:20]}  Ra8 {[%clk 0:00:46]} 26. Qe2 {[%clk 0:01:10]}  Ra2 {[%clk 0:00:45]} 27. Re8+ {[%clk 0:01:10]}  Kg7 {[%clk 0:00:44]} 28. Qe7+ {[%clk 0:01:07]}  Kg6 {[%clk 0:00:44]} 29. Rg8+ {[%clk 0:01:04]}  Kh5 {[%clk 0:00:43]} 30. Qe2+ {[%clk 0:01:00]}  Kh4 {[%clk 0:00:40]} 31. g3+ {[%clk 0:00:40]}  fxg3 {[%clk 0:00:34]} 32. hxg3+ {[%clk 0:00:40]}  Kh3 {[%clk 0:00:15]} 33. Qh5+ {[%clk 0:00:39]}  Kxg3 {[%clk 0:00:15]} 34. Qh2+ {[%clk 0:00:25]}  Kg4 {[%clk 0:00:15]} 35. Qe2+ {[%clk 0:00:10]}  Kh4 {[%clk 0:00:14]} 36. Rf4+ {[%clk 0:00:09]}  Kh3 {[%clk 0:00:01]} 37. Qg4# {[%clk 0:00:08]} 1-0


[Site "https://www.chess.com"]

[Event "Titled Tuesday Blitz June 28 Early 2022"]
[White "Rychagov, Andrey"]
[Black "Yoo, Christopher Woojin"]
[WhiteFideId "4119932"]
[BlackFideId "30909694"]
[WhiteElo "2460"]
[BlackElo "2105"]
[Result "0-1"]
[Round "08"]
[TimeControl "180+1"]
[Date "2022.06.28"]
[WhiteClock "0:00:12"]
[BlackClock "0:00:14"]

1. d4 {[%clk 0:03:00]}  d5 {[%clk 0:02:59]} 2. c4 {[%clk 0:03:00]}  e6 {[%clk 0:02:59]} 3. Nf3 {[%clk 0:03:01]}  Nf6 {[%clk 0:02:59]} 4. Nc3 {[%clk 0:02:57]}  c6 {[%clk 0:02:58]} 5. e3 {[%clk 0:02:57]}  Nbd7 {[%clk 0:02:58]} 6. Qc2 {[%clk 0:02:56]}  b6 {[%clk 0:02:58]} 7. b3 {[%clk 0:02:55]}  Bb7 {[%clk 0:02:57]} 8. Bd3 {[%clk 0:02:55]}  dxc4 {[%clk 0:02:38]} 9. Bxc4 {[%clk 0:02:55]}  c5 {[%clk 0:02:38]} 10. Ne5 {[%clk 0:02:48]}  Bxg2 {[%clk 0:02:10]} 11. Rg1 {[%clk 0:02:46]}  Bb7 {[%clk 0:02:10]} 12. Bb2 {[%clk 0:02:38]}  cxd4 {[%clk 0:02:03]} 13. exd4 {[%clk 0:02:38]}  a6 {[%clk 0:01:49]} 14. Qe2 {[%clk 0:02:30]}  Qe7 {[%clk 0:01:23]} 15. O-O-O {[%clk 0:02:00]}  b5 {[%clk 0:01:19]} 16. Bd3 {[%clk 0:01:58]}  b4 {[%clk 0:00:55]} 17. Na4 {[%clk 0:01:54]}  Nd5 {[%clk 0:00:55]} 18. Kb1 {[%clk 0:01:42]}  Nf4 {[%clk 0:00:55]} 19. Qe3 {[%clk 0:01:42]}  Nxd3 {[%clk 0:00:55]} 20. Rxd3 {[%clk 0:01:40]}  Nf6 {[%clk 0:00:51]} 21. Nb6 {[%clk 0:01:18]}  Nd5 {[%clk 0:00:46]} 22. Nxd5 {[%clk 0:01:15]}  Bxd5 {[%clk 0:00:47]} 23. Qf4 {[%clk 0:01:10]}  Qb7 {[%clk 0:00:36]} 24. Rdd1 {[%clk 0:00:57]}  f6 {[%clk 0:00:26]} 25. Nc4 {[%clk 0:00:55]}  Rd8 {[%clk 0:00:21]} 26. Qg4 {[%clk 0:00:46]}  Qf7 {[%clk 0:00:17]} 27. Ne3 {[%clk 0:00:34]}  Qg6+ {[%clk 0:00:15]} 28. Qxg6+ {[%clk 0:00:27]}  hxg6 {[%clk 0:00:16]} 29. Nxd5 {[%clk 0:00:23]}  Rxd5 {[%clk 0:00:15]} 30. Rc1 {[%clk 0:00:24]}  Kd7 {[%clk 0:00:16]} 31. Rg2 {[%clk 0:00:17]}  g5 {[%clk 0:00:15]} 32. Rc4 {[%clk 0:00:16]}  Bd6 {[%clk 0:00:15]} 33. f3 {[%clk 0:00:16]}  a5 {[%clk 0:00:14]} 34. Rcc2 {[%clk 0:00:15]}  Rh3 {[%clk 0:00:13]} 35. Rcf2 {[%clk 0:00:14]}  Rf5 {[%clk 0:00:13]} 36. f4 {[%clk 0:00:12]}  Rxf4 {[%clk 0:00:13]} 37. Rxf4 {[%clk 0:00:12]}  Bxf4 {[%clk 0:00:14]} 0-1


[Site "https://www.chess.com"]

[Event "Titled Tuesday Blitz June 28 Early 2022"]
[White "Shuvalov, Evgenij"]
[Black "Dwilewicz, Katarzyna"]
[WhiteFideId "4187237"]
[BlackFideId "1148486"]
[WhiteElo "2023"]
[BlackElo "1907"]
[Result "1-0"]
[Round "08"]
[TimeControl "180+1"]
[Date "2022.06.28"]
[WhiteClock "0:00:20"]
[BlackClock "0:01:25"]

1. b4 {[%clk 0:02:49]}  b6 {[%clk 0:03:00]} 2. e4 {[%clk 0:02:47]}  Bb7 {[%clk 0:03:00]} 3. Nc3 {[%clk 0:02:47]}  e6 {[%clk 0:02:58]} 4. Rb1 {[%clk 0:02:45]}  d5 {[%clk 0:02:54]} 5. e5 {[%clk 0:02:44]}  d4 {[%clk 0:02:50]} 6. Nb5 {[%clk 0:02:28]}  a6 {[%clk 0:02:39]} 7. Na3 {[%clk 0:02:27]}  Nc6 {[%clk 0:02:34]} 8. b5 {[%clk 0:02:19]}  axb5 {[%clk 0:02:28]} 9. Nxb5 {[%clk 0:02:14]}  Nxe5 {[%clk 0:02:28]} 10. Bb2 {[%clk 0:02:01]}  c5 {[%clk 0:02:23]} 11. c3 {[%clk 0:01:53]}  dxc3 {[%clk 0:02:14]} 12. Bxc3 {[%clk 0:01:52]}  Nd3+ {[%clk 0:01:50]} 13. Bxd3 {[%clk 0:01:51]}  Qxd3 {[%clk 0:01:51]} 14. Nc7+ {[%clk 0:01:26]}  Kd7 {[%clk 0:01:51]} 15. Nxa8 {[%clk 0:01:26]}  Bxg2 {[%clk 0:01:48]} 16. Nxb6+ {[%clk 0:01:25]}  Kc6 {[%clk 0:01:27]} 17. Qa4+ {[%clk 0:01:06]}  Kb7 {[%clk 0:01:26]} 18. Qa8+ {[%clk 0:00:20]}  Kc7 {[%clk 0:01:25]} 19. Qc8+ {[%clk 0:00:20]}  Kd6 {[%clk 0:01:25]} 20. Qd7# {[%clk 0:00:20]} 1-0


[Site "https://www.chess.com"]

[Event "Titled Tuesday Blitz June 28 Early 2022"]
[White "Silva, Pedro Gil Ferreira Da"]
[Black "Kuzmin, Roman"]
[WhiteFideId "1946102"]
[BlackFideId "44134932"]
[WhiteElo "1863"]
[BlackElo "1968"]
[Result "0-1"]
[Round "08"]
[TimeControl "180+1"]
[Date "2022.06.28"]
[WhiteClock "0:01:06"]
[BlackClock "0:00:20"]

1. Nf3 {[%clk 0:03:00]}  Nf6 {[%clk 0:02:59]} 2. c4 {[%clk 0:03:00]}  c6 {[%clk 0:02:58]} 3. g3 {[%clk 0:03:00]}  d5 {[%clk 0:02:58]} 4. Bg2 {[%clk 0:03:00]}  e6 {[%clk 0:02:58]} 5. O-O {[%clk 0:03:01]}  Be7 {[%clk 0:02:59]} 6. b3 {[%clk 0:03:01]}  O-O {[%clk 0:02:59]} 7. Bb2 {[%clk 0:03:01]}  b6 {[%clk 0:03:00]} 8. d4 {[%clk 0:03:01]}  Bb7 {[%clk 0:03:01]} 9. Nc3 {[%clk 0:03:00]}  Nbd7 {[%clk 0:03:00]} 10. Re1 {[%clk 0:03:00]}  c5 {[%clk 0:02:56]} 11. cxd5 {[%clk 0:02:59]}  exd5 {[%clk 0:02:38]} 12. Rc1 {[%clk 0:02:58]}  Re8 {[%clk 0:02:35]} 13. dxc5 {[%clk 0:02:56]}  Bxc5 {[%clk 0:02:36]} 14. Nb5 {[%clk 0:02:53]}  Qe7 {[%clk 0:02:15]} 15. Nc7 {[%clk 0:02:43]}  Bxf2+ {[%clk 0:02:14]} 16. Kxf2 {[%clk 0:02:40]}  Ng4+ {[%clk 0:02:13]} 17. Kf1 {[%clk 0:02:37]}  Ne3+ {[%clk 0:02:12]} 18. Kg1 {[%clk 0:02:36]}  Nxd1 {[%clk 0:02:12]} 19. Rexd1 {[%clk 0:02:36]}  Qxe2 {[%clk 0:02:04]} 20. Nxe8 {[%clk 0:02:30]}  Qxb2 {[%clk 0:01:53]} 21. Nd6 {[%clk 0:02:26]}  Nc5 {[%clk 0:01:38]} 22. Nd4 {[%clk 0:02:07]}  Rd8 {[%clk 0:01:26]} 23. Nxb7 {[%clk 0:02:04]}  Nxb7 {[%clk 0:01:27]} 24. Nc6 {[%clk 0:02:03]}  Rf8 {[%clk 0:01:23]} 25. Ne7+ {[%clk 0:02:02]}  Kh8 {[%clk 0:01:22]} 26. Nxd5 {[%clk 0:02:02]}  Qxa2 {[%clk 0:01:16]} 27. Nc3 {[%clk 0:02:00]}  Qa6 {[%clk 0:01:04]} 28. Ra1 {[%clk 0:02:00]}  Na5 {[%clk 0:01:04]} 29. b4 {[%clk 0:01:43]}  Qc4 {[%clk 0:01:04]} 30. Nd5 {[%clk 0:01:43]}  Nc6 {[%clk 0:00:48]} 31. Rac1 {[%clk 0:01:42]}  Qb3 {[%clk 0:00:47]} 32. Rf1 {[%clk 0:01:32]}  Ne5 {[%clk 0:00:31]} 33. Rce1 {[%clk 0:01:28]}  Ng6 {[%clk 0:00:27]} 34. Re3 {[%clk 0:01:23]}  Qc4 {[%clk 0:00:24]} 35. Rfe1 {[%clk 0:01:22]}  a5 {[%clk 0:00:22]} 36. Nxb6 {[%clk 0:01:17]}  Qxb4 {[%clk 0:00:20]} 37. Nd7 {[%clk 0:01:10]}  Rg8 {[%clk 0:00:19]} 38. Re8 {[%clk 0:01:07]}  Qd4+ {[%clk 0:00:19]} 39. Kh1 {[%clk 0:01:06]}  Qxd7 {[%clk 0:00:20]} 0-1


[Site "https://www.chess.com"]

[Event "Titled Tuesday Blitz June 28 Early 2022"]
[White "Simonovic, Miroslav"]
[Black "Petrova, Irina"]
[WhiteFideId "919152"]
[BlackFideId "14124122"]
[WhiteElo "2043"]
[BlackElo "1993"]
[Result "1-0"]
[Round "08"]
[TimeControl "180+1"]
[Date "2022.06.28"]
[WhiteClock "0:00:30"]
[BlackClock "0:00:16"]

1. d4 {[%clk 0:03:00]}  d6 {[%clk 0:03:00]} 2. Bg5 {[%clk 0:03:01]}  g6 {[%clk 0:03:00]} 3. h4 {[%clk 0:03:01]}  h5 {[%clk 0:02:49]} 4. c4 {[%clk 0:02:59]}  Bg7 {[%clk 0:02:48]} 5. Nc3 {[%clk 0:02:58]}  Nf6 {[%clk 0:02:46]} 6. e3 {[%clk 0:02:57]}  Nc6 {[%clk 0:02:44]} 7. Bxf6 {[%clk 0:02:57]}  Bxf6 {[%clk 0:02:44]} 8. f4 {[%clk 0:02:57]}  e5 {[%clk 0:02:36]} 9. Nf3 {[%clk 0:02:46]}  Bg4 {[%clk 0:02:30]} 10. dxe5 {[%clk 0:02:39]}  dxe5 {[%clk 0:02:20]} 11. Qxd8+ {[%clk 0:02:38]}  Rxd8 {[%clk 0:02:21]} 12. Nd5 {[%clk 0:02:34]}  Bg7 {[%clk 0:01:54]} 13. Nxc7+ {[%clk 0:02:33]}  Kd7 {[%clk 0:01:53]} 14. Nd5 {[%clk 0:02:32]}  exf4 {[%clk 0:01:51]} 15. exf4 {[%clk 0:02:32]}  Bxb2 {[%clk 0:01:47]} 16. Rb1 {[%clk 0:02:30]}  Rhe8+ {[%clk 0:01:34]} 17. Kd2 {[%clk 0:02:25]}  Bxf3 {[%clk 0:01:12]} 18. gxf3 {[%clk 0:02:11]}  Bg7 {[%clk 0:00:49]} 19. Rxb7+ {[%clk 0:02:11]}  Ke6 {[%clk 0:00:42]} 20. Bh3+ {[%clk 0:02:04]}  Kd6 {[%clk 0:00:28]} 21. Rxf7 {[%clk 0:02:02]}  Bd4 {[%clk 0:00:24]} 22. Rb1 {[%clk 0:01:26]}  Kc5 {[%clk 0:00:24]} 23. Bf1 {[%clk 0:01:00]}  Bf2 {[%clk 0:00:22]} 24. Rb5+ {[%clk 0:00:58]}  Kd4 {[%clk 0:00:20]} 25. Rf6 {[%clk 0:00:51]}  Ne7 {[%clk 0:00:18]} 26. Nxe7 {[%clk 0:00:47]}  Rxe7 {[%clk 0:00:19]} 27. Rxg6 {[%clk 0:00:46]}  Be3+ {[%clk 0:00:19]} 28. Kc2 {[%clk 0:00:45]}  Bxf4 {[%clk 0:00:19]} 29. Bd3 {[%clk 0:00:35]}  Ke3 {[%clk 0:00:19]} 30. Be4 {[%clk 0:00:36]}  Rd2+ {[%clk 0:00:19]} 31. Kb3 {[%clk 0:00:36]}  Be5 {[%clk 0:00:19]} 32. Rg5 {[%clk 0:00:31]}  Rb2+ {[%clk 0:00:18]} 33. Ka3 {[%clk 0:00:30]}  Bc3 {[%clk 0:00:18]} 34. Rxb2 {[%clk 0:00:30]}  Bxb2+ {[%clk 0:00:18]} 35. Kxb2 {[%clk 0:00:31]}  Kf4 {[%clk 0:00:18]} 36. Rxh5 {[%clk 0:00:31]}  a5 {[%clk 0:00:16]} 37. Rxa5 {[%clk 0:00:30]}  Rh7 {[%clk 0:00:16]} 1-0


[Site "https://www.chess.com"]